Cogmind - Beta 10.2 --- EXPLORER MODE // 2020.11.17 @ 15:20:25 // Halloween2020/ForbiddenLore Player: 1Q84 Result: Self-destructed Performance ------------- Evolutions (2) 1000 Regions Visited (7) 1400 Robots Destroyed (41) 205 Value Destroyed (1051) 1051 Prototype IDs (26) 520 Alien Tech Used (0) 0 Bonus (383) 383 TOTAL SCORE: 4559 Bonus ------- Follower Combat Kills 127 Aligned with FarCom 300 Friendly Fire -44 Cogmind --------- Core Integrity 532/550 Matter 290/300 Energy 150/150 System Corruption 0% Temperature Cool (0) Movement Walking (150) Ox1 Location -8/Materials Parts ------- > --- POWER (1) -------- Light Angular Momentum Engine > --- PROPULSION (4) --- Aluminum Leg Aluminum Leg Improved Aluminum Leg Carbon-fiber Leg > --- UTILITY (5) ------ Medium Storage Unit Large Storage Unit Large Storage Unit Improved Terrain Scanner Improved ECM Suite > --- WEAPON (2) ------- Advanced Beam Cannon Mini Grenade Launcher > --- INVENTORY (20) --- Aluminum Leg Medium Storage Unit Weight Redist. System ECM Suite Maneuvering Thrusters Cloak of Protection Shield Generator Hacking Suite Improved EM Shotgun Light Assault Rifle EMP Blaster Mini Grenade Launcher Peak State ------------ > --- POWER ------------ Light Angular Momentum Engine > --- PROPULSION ------- Aluminum Leg Aluminum Leg Improved Aluminum Leg Carbon-fiber Leg > --- UTILITY ---------- Medium Storage Unit Large Storage Unit Large Storage Unit Improved Terrain Scanner Improved ECM Suite > --- WEAPON ----------- Advanced Beam Cannon Mini Grenade Launcher > --- INVENTORY -------- Aluminum Leg Medium Storage Unit Weight Redist. System ECM Suite Maneuvering Thrusters Cloak of Protection Shield Generator Hacking Suite Improved EM Shotgun Light Assault Rifle EMP Blaster Mini Grenade Launcher [Rating: 27] Favorites ----------- Power Improved Ion Engine Engine Improved Ion Engine Propulsion Aluminum Leg Leg Aluminum Leg Utility Medium Storage Unit Device Improved Terrain Scanner Storage Medium Storage Unit Weapon Mini Grenade Launcher Energy Gun Medium Laser Energy Cannon Advanced Beam Cannon Launcher Mini Grenade Launcher Build | -11 -10 -10 -9 -9 -9 -8 -8 ------- Run | Scr Mat Min Mat Min Exi Min Mat Slots Evolved 5 | . 1 . 2 . . . 2 Power . | . . . . . . . . Propulsion 2 | . . . 1 . . . 1 Utility 3 | . 1 . 1 . . . 1 Weapon . | . . . . . . . . Parts Attached 31 | 6 5 2 7 3 2 4 2 Power 5 | 1 . . 2 1 . 1 . Engine 5 | 1 . . 2 1 . 1 . Core . | . . . . . . . . Reactor . | . . . . . . . . Propulsion 9 | 2 1 2 . . . 3 1 Treads . | . . . . . . . . Leg 9 | 2 1 2 . . . 3 1 Wheel . | . . . . . . . . Hover . | . . . . . . . . Flight . | . . . . . . . . Utility 8 | 1 2 . 1 1 2 . 1 Device 4 | . 2 . 1 . . . 1 Storage 4 | 1 . . . 1 2 . . Processor . | . . . . . . . . Hackware . | . . . . . . . . Protection . | . . . . . . . . Artifact . | . . . . . . . . Weapon 9 | 2 2 . 4 1 . . . Energy Gun 4 | 2 1 . 1 . . . . Energy Cannon 3 | . . . 3 . . . . Ballistic Gun . | . . . . . . . . Ballistic Cannon . | . . . . . . . . Launcher 2 | . 1 . . 1 . . . Special Weapon . | . . . . . . . . Impact Weapon . | . . . . . . . . Slashing Weapon . | . . . . . . . . Piercing Weapon . | . . . . . . . . Special Melee Weapon . | . . . . . . . . Unidentified Prototypes . | . . . . . . . . Parts Lost 6 | . . 1 4 1 . . . Power 1 | . . . 1 . . . . Propulsion 2 | . . 1 1 . . . . Utility 2 | . . . 1 1 . . . Weapon 1 | . . . 1 . . . . Highest Loss Streak 3 | . . 1 3 1 . . . Average Slot Usage (%) 80 | . 81 97 75 69 71 88 93 Engine 10 | . 12 12 9 10 10 10 8 Leg 15 | . 25 22 12 10 10 18 31 Device 14 | . 9 25 22 12 10 10 11 Storage 18 | . 12 12 10 16 21 30 25 Energy Gun 4 | . 18 12 4 2 . . . Energy Cannon 8 | . . . 10 10 10 10 8 Launcher 7 | . 3 12 4 7 10 10 8 Naked Turns . | . . . . . . . . Heaviest Build 57 | 16 19 19 25 29 53 55 57 Greatest Support 48 | 20 20 30 30 10 10 35 48 Greatest Overweight (x) 5 | 4 1 1 2 2 5 5 1 Average Overweight (x) 1 | . . . 1 2 2 2 1 Largest Inventory Capacity 20 | 8 8 8 8 12 20 20 20 Average Capacity 12 | 7 8 8 8 10 13 20 20 Most Carried 12 | 2 8 8 8 9 11 12 12 Average Carried 8 | 1 6 8 7 8 9 11 12 Final Capacity 20 | 8 8 8 8 12 20 20 20 Final Carried 12 | 2 8 8 8 9 11 12 12 Class Distribution -------------------- 80% | Hacker-Mutant 19% | Hacker-Skirmisher Dominant Class ---------------- Hacker-Mutant | -10/Materials Hacker-Mutant | -10/Mines Hacker-Mutant | -9/Materials Hacker-Mutant | -9/Mines Hacker-Mutant | -9/Exiles Hacker-Skirmisher | -8/Mines Hacker-Mutant | -8/Materials Resources | -11 -10 -10 -9 -9 -9 -8 -8 ----------- Run | Scr Mat Min Mat Min Exi Min Mat Matter Collected 790 | 194 116 22 226 . . 222 10 Remotely . | . . . . . . . . Salvage Created 1228 | . 230 161 651 10 . 176 . Parts 74 | . 8 7 46 5 . 8 . Haulers Intercepted 5 | . 1 . 4 . . . . Recyclers Shooed . | . . . . . . . . Parts Field Recycled . | . . . . . . . . Retrieved Matter . | . . . . . . . . Parts Self-Destructed . | . . . . . . . . Prevented . | . . . . . . . . Kills | -11 -10 -10 -9 -9 -9 -8 -8 ------- Run | Scr Mat Min Mat Min Exi Min Mat Combat Hostiles Destroyed 38 | . 5 10 16 3 . 4 . Guns 11 | . 5 4 2 . . . . Cannons 8 | . . . 6 1 . 1 . AOE 18 | . . 6 7 2 . 3 . Classes Destroyed 10 | . 3 3 2 . . 2 . Worker 2 | . . 1 1 . . . . Hauler 5 | . 1 . 4 . . . . Recycler 1 | . . . . . . 1 . Watcher 1 | . . . 1 . . . . Swarmer 13 | . 2 2 4 3 . 2 . Grunt 10 | . 3 . 6 . . 1 . Brawler 1 | . . . 1 . . . . Duelist 1 | . . . . . . 1 . Sentry 7 | . . 2 5 . . . . Assembled 6 | . . 6 . . . . . Best Kill Streak 6 | . 3 5 6 3 . 2 . Combat Bots Only 5 | . 2 5 4 3 . 2 . Max Kills in Single Turn 3 | . 1 3 2 2 . 2 . Gunslinging . | . . . . . . . . Exploded 3 | . . 3 2 2 . 2 . Melee . | . . . . . . . . Uniques/NPCs Destroyed . | . . . . . . . . Combat | -11 -10 -10 -9 -9 -9 -8 -8 -------- Run | Scr Mat Min Mat Min Exi Min Mat Damage Taken 913 | . 81 180 481 77 . 58 36 Core 177 | . 23 21 82 24 . 9 18 Absorbed by Shields 154 | . . 80 74 . . . . Core Remaining (%) 84 | 100 . 82 . . . 71 . Volleys Fired 92 | . 12 21 43 7 . 9 . Largest 2 | . 2 2 2 2 . 2 . Hottest 113 | . 90 80 112 113 . 98 . Shots Fired 147 | . 24 28 70 12 . 13 . Gun 64 | . 24 21 18 1 . . . Cannon 51 | . . . 35 7 . 9 . Launcher 32 | . . 7 17 4 . 4 . Special . | . . . . . . . . Kinetic . | . . . . . . . . Thermal 79 | . 24 21 18 7 . 9 . Explosive 32 | . . 7 17 4 . 4 . Electromagnetic 36 | . . . 35 1 . . . Robot Hit Streak 34 | . 12 12 34 11 . 8 . Robot Miss Streak 3 | . 1 2 1 3 . . . Penetration Max . | . . . . . . . . Secondary Targets 1 | . 1 . . . . . . Max Gunslinging Chain 1 | . 1 . . . . . . Shots Hit Robots 108 | . 18 21 60 2 . 7 . Core Hits 70 | . 11 18 31 3 . 7 . Critical Hits 1 | . . . . . . 1 . Critical Kills . | . . . . . . . . Critical Parts Destroyed 1 | . . . . . . 1 . Melee Attacks . | . . . . . . . . Impact . | . . . . . . . . Slashing . | . . . . . . . . Piercing . | . . . . . . . . Sneak Attacks . | . . . . . . . . Combat Hostiles . | . . . . . . . . Follow-up Attacks . | . . . . . . . . Damage Inflicted 3390 | . 214 713 1882 249 . 332 . Guns 601 | . 214 189 198 . . . . Cannons 762 | . . . 597 21 . 144 . Explosions 2027 | . . 524 1087 228 . 188 . Melee . | . . . . . . . . Ramming . | . . . . . . . . Kinetic . | . . . . . . . . Thermal 1023 | . 214 189 354 21 . 245 . Explosive 1738 | . . 524 899 228 . 87 . Electromagnetic 629 | . . . 629 . . . . Impact . | . . . . . . . . Slashing . | . . . . . . . . Piercing . | . . . . . . . . Highest Corruption . | . . . . . . . . Average Corruption . | . . . . . . . . Corruption Purged . | . . . . . . . . Overload Shots . | . . . . . . . . Overflow Damage 150 | . . 13 113 11 . 13 . Projectiles 14 | . . . 14 . . . . Explosions 136 | . . 13 99 11 . 13 . Melee . | . . . . . . . . Knockbacks . | . . . . . . . . Impact . | . . . . . . . . Kinetic . | . . . . . . . . Secondary . | . . . . . . . . Self-Inflicted Damage 283 | . . 31 226 5 . 21 . Shots 12 | . . 1 9 1 . 1 . Rammed . | . . . . . . . . Targets Rammed . | . . . . . . . . Kicked . | . . . . . . . . Crushed . | . . . . . . . . Highest Temperature 162 | . 162 140 162 114 . 131 . Average Temperature 47 | . 52 48 43 57 . 52 . Received Heat Transfer 330 | . 60 48 168 . . 36 18 Siege Activations . | . . . . . . . . Robots Corrupted 1 | . . . 1 . . . . Combat Hostiles 1 | . . . 1 . . . . Parts Fried 4 | . . . 4 . . . . Impact Corruptions . | . . . . . . . . Robots Melted . | . . . . . . . . Combat Hostiles . | . . . . . . . . Parts Melted 6 | . 2 3 1 . . . . Heat Transferred 2275 | . 582 555 742 37 . 359 . Parts Sabotaged . | . . . . . . . . Parts Stolen . | . . . . . . . . Parts Stripped . | . . . . . . . . Power Chain Reactions 1 | . . . 1 . . . . Missiles Intercepted . | . . . . . . . . Alert | -11 -10 -10 -9 -9 -9 -8 -8 ------- Run | Scr Mat Min Mat Min Exi Min Mat Peak Influence 395 | . 210 69 395 70 . 117 53 Initial 31 | . . . 18 10 . . 31 Average 66 | . 117 43 136 16 . 31 35 Maximum Alert Level 1 | . 1 . 1 . . . . Low Security (%) 91 | 100 84 100 72 100 . 100 100 Level 1 8 | . 15 . 27 . . . . Level 2 . | . . . . . . . . Level 3 . | . . . . . . . . Level 4 . | . . . . . . . . Level 5 . | . . . . . . . . High Security . | . . . . . . . . Max Security . | . . . . . . . . Squads Dispatched 5 | . 1 . 3 . . . 1 Investigation 3 | . 1 . 1 . . . 1 Extermination . | . . . . . . . . Reinforcement 2 | . . . 2 . . . . Assault . | . . . . . . . . Garrison . | . . . . . . . . Intercept . | . . . . . . . . Construction Impeded . | . . . . . . . . Haulers Reinforced . | . . . . . . . . Stealth | -11 -10 -10 -9 -9 -9 -8 -8 --------- Run | Scr Mat Min Mat Min Exi Min Mat Distress Signals 1 | . . . 1 . . . . Communications Jammed . | . . . . . . . . Distress Signals . | . . . . . . . . Times Spotted 54 | . 7 11 27 3 . 4 2 Peak Tracking Total 7 | . 3 7 4 3 . 2 2 Tactical Retreats 2 | . . . 2 . . . . Traps | -11 -10 -10 -9 -9 -9 -8 -8 ------- Run | Scr Mat Min Mat Min Exi Min Mat Traps Triggered 1 | . 1 . . . . . . Indirectly . | . . . . . . . . Trap Hack Attempts . | . . . . . . . . Triggered . | . . . . . . . . Disarmed . | . . . . . . . . Reprogrammed . | . . . . . . . . Reused . | . . . . . . . . Traps Extracted . | . . . . . . . . Installed . | . . . . . . . . Triggered 1 | . . . 1 . . . . Machines | -11 -10 -10 -9 -9 -9 -8 -8 ---------- Run | Scr Mat Min Mat Min Exi Min Mat Machines Disabled 11 | . . 1 8 . . 2 . Max in Single Turn 2 | . . 1 2 . . 2 . Machines Sabotaged . | . . . . . . . . Garrisons Compromised . | . . . . . . . . Overloaded Fab Kills . | . . . . . . . . Fab Network Shutdowns . | . . . . . . . . Hacking | -11 -10 -10 -9 -9 -9 -8 -8 --------- Run | Scr Mat Min Mat Min Exi Min Mat Machines Accessed 14 | . 5 . 6 . 2 . 1 Terminals 11 | . 5 . 5 . . . 1 Fabricators . | . . . . . . . . Repair Stations . | . . . . . . . . Recycling Units . | . . . . . . . . Scanalyzers 1 | . . . 1 . . . . Garrison Access . | . . . . . . . . Total Hacks 35 | . 11 . 13 . 6 . 5 Successful 25 | . 7 . 10 . 6 . 2 Failed 10 | . 4 . 3 . . . 3 Catastrophic 3 | . 1 . 1 . . . 1 Database Lockouts . | . . . . . . . . Manual 14 | . 1 . 8 . 1 . 4 Terminals 26 | . 11 . 10 . . . 5 Fabricators . | . . . . . . . . Repair Stations . | . . . . . . . . Recycling Units . | . . . . . . . . Scanalyzers 3 | . . . 3 . . . . Garrison Access . | . . . . . . . . Terminal Hacks 20 | . 7 . 5 . 6 . 2 Record 5 | . . . . . 5 . . Prototype ID Bank 2 | . 1 . 1 . . . . Level Access Points 1 | . . . 1 . . . . Branch Access Points 2 | . 1 . 1 . . . . Machine Index 1 | . 1 . . . . . . Terminal Index 1 | . . . . . . . 1 Scanalyzer Index 2 | . . . 2 . . . . Patrol Status 1 | . 1 . . . . . . Transport Status 1 | . 1 . . . . . . Hauler Manifests 3 | . 2 . . . . . 1 EX-Prototype ID Bank 1 | . . . . . 1 . . Fabricator Hacks . | . . . . . . . . Repair Station Hacks . | . . . . . . . . Recycling Unit Hacks . | . . . . . . . . Scanalyzer 3 | . . . 3 . . . . Insert Component 2 | . . . 2 . . . . Analyze 1 | . . . 1 . . . . Garrison Access Hacks . | . . . . . . . . Unauthorized Hacks 2 | . . . 2 . . . . Terminals 2 | . . . 2 . . . . Botnet 2 | . . . 2 . . . . Fabricators . | . . . . . . . . Repair Stations . | . . . . . . . . Recycling Units . | . . . . . . . . Scanalyzers . | . . . . . . . . Garrison Access . | . . . . . . . . Data Cores Recovered . | . . . . . . . . Used . | . . . . . . . . Hacking Detections 9 | . 4 . 4 . . . 1 Full Trace Events 6 | . 3 . 2 . . . 1 Feedback Events . | . . . . . . . . Feedback Blocked . | . . . . . . . . Robot Schematics Acquired . | . . . . . . . . Robots Built . | . . . . . . . . Matter . | . . . . . . . . Time . | . . . . . . . . Total Robot Build Rating . | . . . . . . . . Part Schematics Acquired 1 | . . . 1 . . . . Parts Built . | . . . . . . . . Matter . | . . . . . . . . Time . | . . . . . . . . Total Part Build Rating . | . . . . . . . . Parts Repaired . | . . . . . . . . Time . | . . . . . . . . Parts Recycled . | . . . . . . . . Recycled Matter . | . . . . . . . . Retrieved Matter . | . . . . . . . . Retrieved Components . | . . . . . . . . Parts Scanalyzed 1 | . . . 1 . . . . Part Schematics Acquired 1 | . . . 1 . . . . Parts Damaged . | . . . . . . . . Bothacking | -11 -10 -10 -9 -9 -9 -8 -8 ------------ Run | Scr Mat Min Mat Min Exi Min Mat Used RIF Installer . | . . . . . . . . Robots Hacked . | . . . . . . . . Non-combat . | . . . . . . . . Combat . | . . . . . . . . Robot Hacks Applied . | . . . . . . . . Relay Couplers Released . | . . . . . . . . Robots Rewired . | . . . . . . . . Allies Hacked . | . . . . . . . . Hacks Repelled . | . . . . . . . . Allies | -11 -10 -10 -9 -9 -9 -8 -8 -------- Run | Scr Mat Min Mat Min Exi Min Mat Total Allies 3 | . . . . 3 . . . Largest Group 3 | . . . . 3 3 3 . Highest-Rated Group 40 | . . . . 40 40 40 . Highest-Rated Ally 16 | . . . . 16 16 16 . Total Orders . | . . . . . . . . Ally Attacks 51 | . . . . . . 51 . Total Damage 579 | . . . . . . 579 . Kills 5 | . . . . . . 5 . Allies Corrupted . | . . . . . . . . Allies Melted . | . . . . . . . . Intel | -11 -10 -10 -9 -9 -9 -8 -8 ------- Run | Scr Mat Min Mat Min Exi Min Mat Robot Analysis Total . | . . . . . . . . Derelict Logs Recovered . | . . . . . . . . Drone Launches . | . . . . . . . . Drone Recoveries . | . . . . . . . . Exploration | -11 -10 -10 -9 -9 -9 -8 -8 ------------- Run | Scr Mat Min Mat Min Exi Min Mat Turns Passed 4656 | 59 460 477 1091 869 503 1123 74 Spaces Moved 2592 | 36 326 328 603 458 262 532 47 Core 10 | 10 . . . . . . . Treads . | . . . . . . . . Legs 2582 | 26 326 328 603 458 262 532 47 Wheels . | . . . . . . . . Hover . | . . . . . . . . Flight . | . . . . . . . . Fastest Speed 50 | 50 120 120 120 180 180 150 150 Average Speed 164 | 124 120 126 157 180 191 199 150 Slowest Speed 270 | 250 150 150 180 180 270 270 150 Overloaded Moves . | . . . . . . . . Propulsion Burnouts . | . . . . . . . . Robots Hopped . | . . . . . . . . Cave-ins Triggered . | . . . . . . . . Exploration Rate (%) 58 | 3 65 90 50 94 62 95 8 Regions Visited 7 Branch Regions 4 Pre-discovered Areas 1 | . . . . . 1 . . Known Exits Taken 7 | 1 1 1 1 1 1 1 . Unknown Exits Taken . | . . . . . . . . Scrap Searched . | . . . . . . . . Spaces Dug . | . . . . . . . . Terrain Destroyed 301 | . . 55 149 34 . 63 . Melee . | . . . . . . . . Projectile 1 | . . . . 1 . . . AOE 300 | . . 55 149 33 . 63 . Terrain Rammed . | . . . . . . . . Walls Destroyed . | . . . . . . . . Machines Disabled . | . . . . . . . . Actions | -11 -10 -10 -9 -9 -9 -8 -8 --------- Run | Scr Mat Min Mat Min Exi Min Mat Total 2832 | 47 368 363 674 490 264 577 49 Wait 100 | 4 18 12 13 21 . 32 . Move 2585 | 35 325 327 602 457 261 531 47 Hop . | . . . . . . . . Pick Up 14 | 2 7 . 3 1 1 . . Fast Attach 23 | 6 5 1 4 1 1 3 2 Attach 2 | . . . 2 . . . . Detach 1 | . . . 1 . . . . Swap 6 | . . 1 1 2 1 1 . Drop 9 | . 1 1 5 1 . 1 . Fire 92 | . 12 21 43 7 . 9 . Melee . | . . . . . . . . Ram . | . . . . . . . . Kick . | . . . . . . . . Crush . | . . . . . . . . Escape Stasis . | . . . . . . . . Rewire . | . . . . . . . . Trap . | . . . . . . . . Miscellaneous . | . . . . . . . . Route ------- -11/Scrapyard -10/Materials (discovered 3 exits: *Mat x2 / *Min) -10/Mines (discovered 2 exits: *Mat x2) -9/Materials (discovered 4 exits: Mat x3 / *Min) -9/Mines (discovered 3 exits: *Mat x2 / *Exi) -9/Exiles -8/Mines (discovered 2 exits: *Mat x2) -8/Materials History --------- Turn | Location | Event 14 | -11/Scrapyard | Identified exit to Materials 14 | -11/Scrapyard | Discovered exit to Materials (range 16) 60 | -11/Scrapyard | Entered Materials 60 | -10/Materials | Evolved 1 slot: Utility x1 141 | -10/Materials | Identified exit to Mines 141 | -10/Materials | Discovered exit to Mines (range 13) 234 | -10/Materials | Identified exit to Materials 234 | -10/Materials | Discovered exit to Materials (range 5) 320 | -10/Materials | Build established: Hacker-Mutant 360 | -10/Materials | Discovered exit to Materials (range 3) 520 | -10/Materials | Entered Mines 525 | -10/Mines | Assembled infested the area 530 | -10/Mines | Assisted by a Guerilla fighting off Assembled 844 | -10/Mines | Discovered exit to Materials (range 12) 971 | -10/Mines | Discovered exit to Materials (range 15) 997 | -10/Mines | Entered Materials 997 | -9/Materials | Evolved 2 slots: Propulsion x1, Utility x1 1347 | -9/Materials | Lost 3 parts (1n1u1w) 1774 | -9/Materials | Identified exit to Mines 1810 | -9/Materials | Identified exit to Materials 2088 | -9/Materials | Entered Mines 2144 | -9/Mines | Deemed a non-threat by the Exiles lab entrance 2302 | -9/Mines | Discovered exit to Materials (range 11) 2428 | -9/Mines | Discovered exit to Materials (range 9) 2646 | -9/Mines | Assisted by bots powering up and referring to "LRC-V3" 2737 | -9/Mines | YI-UF0 nonchalantly dropped a Grenade Launcher on the ground 2942 | -9/Mines | Identified exit to Exiles 2942 | -9/Mines | Discovered exit to Exiles (range 5) 2957 | -9/Mines | Entered Exiles 2957 | -9/Exiles | Accompanied by 3 allies 3006 | -9/Exiles | Met 8R-AWN 3028 | -9/Exiles | Met EX-HEX 3114 | -9/Exiles | Met EX-BIN 3137 | -9/Exiles | Aligned with FarCom system 3139 | -9/Exiles | Given EX-Vault access code 3184 | -9/Exiles | Opened EX-Vault 3193 | -9/Exiles | Found Cloak of Protection 3250 | -9/Exiles | Warned to stay clear of 0b10 Research branches 3306 | -9/Exiles | Met EX-DEC 3315 | -9/Exiles | Learned location of Zion (-6) 3438 | -9/Exiles | Identified exit to Mines 3438 | -9/Exiles | Discovered exit to Mines (range 10) 3460 | -9/Exiles | Left Exiles lab with Cloak of Protection 3460 | -9/Exiles | Entered Mines 3460 | -8/Mines | Accompanied by 3 allies 3676 | -8/Mines | Discovered exit to Materials (range 4) 3735 | -8/Mines | Discovered exit to Materials (range 6) 3757 | -8/Mines | Build established: Hacker-Skirmisher 4583 | -8/Mines | Entered Materials 4583 | -8/Materials | Evolved 2 slots: Propulsion x1, Utility x1 4657 | -8/Materials | Self-destructed Last Messages --------------- A-02 Transporter 2x Sml. Storage Unit 1x Assault Cannon A-02 Transporter 1x Com. Battery 3x Com. Matter Pod 1x Recoil Stabilizer A-02 Transporter 2x Adv. Beam Rifle 3x Adv. Beam Cannon 1x Hvy. EM Shotgun (2 escorts) A-02 Transporter 6x Hvy. Particle Gun (1 escort) >>Index(Terminals) Found 12 terminals. Downloaded coordinate data. 04630_ ALERT: Suspicious activity at Terminal M009. Dispatching Investigation squad. Map ----- +----------------------------------------------------+ | ?????????????????????????????????????????????????? | | ?????????????????????????????????????????????????? | | ?????????????????????????????????????????????????? | | ?????????????????????????????????????????????????? | | ?????????????????????????????????????????????????? | | ?????????????????????????????????????????????????? | | ?????????????????????????????????????????????????? | | ????????????????????????#????????????????????????? | | ?????????????????????????????????????????????????? | | ?????????????????????????????????????????????????? | | ?????????????????????????????????????????????????? | | ?????????????????????????????????????????????????? | | ?????????????????????????????????????????????????? | | ?????????????????????????????????????????????????? | | ?????????????????????????????????????????????????? | | ?????????????????????????#??#????????????????????? | | ???????????????????????????####?????????#????????? | | ?????????o????????????????? #????????#??????#???? | | ??????????????????????????? !###########?#???????? | | ????????????????????# """"" # T #?????#???? | | ????????????????????# """"" # """ #?????????? | | ???????????#????????# [# """ #?????????? | | ????????????????????# """"" # """ #??#???#??? | | ????????????????????# """"" # #?????????? | | ????????????????????# """"" # #?????????? | | ????????????????????# @ !# * #?????#???? | | ????????????????????######+### ! #?????????? | | ???????????????? ####### ###+###########?????? | | ????????????? #?????? | | ???????????? Y #?????? | | ????????????? g #?????? | | ????????????? ####### ##########+######???? | | ???????????????????????#######???# #???? | | ?????????????????????????????????# % #???? | | ??????????????????????##?????????# #???? | | ????????????????????????????#????# """ """ #???? | | ?????????????????????????????????# """ """ #???? | | ?????????????????????????????????# """ """ #???? | | ?????????????????????????????????# #???? | | ?????????????????????????????????#############???? | | | | | | | | | | | | | | | | | | | | | +----------------------------------------------------+ Best States ------------- Heat Dissipation 31 Energy Generation 18 Energy Capacity 265 Matter Stores 300 Matter Capacity 300 Sight Range 16 Robot Scan Range 10 Terrain Scan Range 16 Terrain Scan Density 10 ECM Strength 2 Resistance: KI 35 Resistance: TH 35 Resistance: EX 35 Resistance: EM 35 Resistance: I 35 Resistance: S 35 Resistance: P 35 Evasion (%) 40 Offensive Hacking 20 Item Schematics ----------------- Hacking Suite | -9/Materials | Scanalyzed Robot Schematics ------------------ None Fabricated ------------ Nothing Alien Tech Used ----------------- None Achievements -------------- None Challenges ------------ None Game ------ Seed ThiefAssaultElectrolaser Manual? 0 Play Time 00:27:32 Cumulative 89.5 hours Start 2020.11.17 @ 10:44:00 End 2020.11.17 @ 15:20:25 Sessions 1 Manual Loads 0 Difficulty Explorer Special Mode Halloween2020/ForbiddenLore Game No. 151 Rogue 0 Adventurer 0 Explorer 151 Win Type - Total 1 Types 1/0/0/0/0/0/0/0/0 Lore% 58 Gallery% 66 Achievement% 50 Wizard Run 0 Options --------- ASCII 0 Keyboard 0 Movement Numpad Keybinds 0 Fullscreen 1 Font 36/Smallcaps Map View 76x50 Tactical HUD 1 Map Filters NONE Filters NONE Steam 1 RUN: f2d6b9e6-182b-4976-866c-cf0e5434461c